Cogmind - Beta 13 @@@ ROGUE MODE // 2024.05.06 @ 13:57:33 Player: Bzilon Result: Destroyed by G-34 Mercenary with Small Laser Performance ------------- Evolutions (1) 500 Regions Visited (2) 400 Robots Destroyed (20) 100 Value Destroyed (415) 415 Prototype IDs (0) 0 Alien Tech Used (0) 0 Bonus (0) 0 TOTAL SCORE: 1415 Bonus ------- None Cogmind --------- Core Integrity 0/400 Matter 232/300 Energy 18/100 System Corruption 0% Temperature Hot (274) Movement Core (50) Location -9/Materials Parts ------- > --- POWER (1) -------- (None) > --- PROPULSION (3) --- (None) > --- UTILITY (3) ------ Advanced Targeting Computer Advanced Targeting Computer > --- WEAPON (2) ------- (None) > --- INVENTORY (5) ---- Compact Matter Pod (0) Reaction Control System Reaction Control System Field Recycling Unit (0) Welding Torch Peak State ------------ > --- POWER ------------ Ion Engine > --- PROPULSION ------- Aluminum Leg > --- UTILITY ---------- Small Storage Unit Advanced Targeting Computer Advanced Targeting Computer > --- WEAPON ----------- Light Assault Rifle Light Cannon > --- INVENTORY -------- Compact Matter Pod Reaction Control System Reaction Control System Field Recycling Unit Beam Rifle Spread Laser Light Assault Rifle Mining Laser [Rating: 12] Favorites ----------- Power Ion Engine Engine Ion Engine Propulsion Light Treads Treads Light Treads Leg Aluminum Leg Hover Unit Improved Hover Unit Utility Small Storage Unit Device Field Recycling Unit Storage Small Storage Unit Processor Improved Targeting Computer Weapon Light Assault Rifle Energy Gun Spread Laser Ballistic Gun Light Assault Rifle Ballistic Cannon Light Cannon Special Weapon Mining Laser Build | -11 -10 -9 ------- Run | Yrd Mat Mat Slots Evolved 2 | . . 2 Power . | . . . Propulsion 1 | . . 1 Utility 1 | . . 1 Weapon . | . . . Parts Attached 22 | 8 1 13 Power 2 | 1 . 1 Engine 2 | 1 . 1 Core . | . . . Reactor . | . . . Propulsion 4 | 2 . 2 Treads 2 | 2 . . Leg 1 | . . 1 Wheel . | . . . Hover 1 | . . 1 Flight . | . . . Utility 7 | 2 1 4 Device 2 | 1 . 1 Storage 2 | 1 1 . Processor 3 | . . 3 Hackware . | . . . Protection . | . . . Artifact . | . . . Weapon 9 | 3 . 6 Energy Gun 2 | . . 2 Energy Cannon . | . . . Ballistic Gun 5 | 3 . 2 Ballistic Cannon 1 | . . 1 Launcher . | . . . Special Weapon 1 | . . 1 Impact Weapon . | . . . Slashing Weapon . | . . . Piercing Weapon . | . . . Special Melee Weapon . | . . . Unidentified Prototypes . | . . . Parts Lost 14 | . 1 13 Power 1 | . . 1 Propulsion 3 | . . 3 Utility 3 | . 1 2 Weapon 7 | . . 7 Highest Loss Streak 9 | . 1 9 To Critical Strikes . | . . . Average Slot Usage (%) 72 | . 95 63 Engine 11 | . 14 10 Treads 9 | . 28 1 Device 7 | . 6 7 Storage 13 | . 17 11 Processor 6 | . . 8 Ballistic Gun 15 | . 28 11 Ballistic Cannon 7 | . . 9 Naked Turns . | . . . Heaviest Build 22 | 14 14 22 Greatest Support 40 | 40 40 40 Greatest Overweight (x) 7 | . . 7 Average Overweight (x) 2 | . . 4 Largest Inventory Capacity 8 | 8 8 8 Average Capacity 7 | 7 8 7 Most Carried 8 | 3 5 8 Average Carried 3 | 1 3 4 Final Capacity 8 | 8 8 5 Final Carried 5 | 3 4 5 Class Distribution -------------------- 100% | Mutant Dominant Class ---------------- Mutant | -10/Materials Mutant | -9/Materials Resources | -11 -10 -9 ----------- Run | Yrd Mat Mat Matter Collected 537 | 202 257 78 Remotely . | . . . Salvage Created 467 | 32 207 228 Parts 31 | 7 11 13 Haulers Intercepted . | . . . Recyclers Shooed 1 | . . 1 Parts Field Recycled 3 | . . 3 Retrieved Matter 11 | . . 11 Parts Self-Destructed . | . . . Prevented . | . . . Kills | -11 -10 -9 ------- Run | Yrd Mat Mat Combat Hostiles Destroyed 15 | . 5 10 Guns 11 | . 5 6 Cannons 4 | . . 4 Classes Destroyed 6 | 1 4 1 Worker 1 | . 1 . Tunneler 3 | 2 1 . Watcher 1 | . 1 . Swarmer 7 | . 3 4 Grunt 6 | . 2 4 Sentry 2 | . . 2 Best Kill Streak 7 | 1 5 7 Combat Bots Only 7 | . 4 7 Max Kills in Single Turn 1 | 1 1 1 Gunslinging . | . . . Exploded . | . . . Melee . | . . . Uniques/NPCs Destroyed . | . . . Combat | -11 -10 -9 -------- Run | Yrd Mat Mat Hostile Shots Fired 202 | . 63 139 Missed 48 | . 13 35 Damage Taken 1802 | . 466 1336 Core 464 | . 59 405 Absorbed by Shields . | . . . Core Remaining (%) 88 | 100 76 . Volleys Fired 71 | 2 33 36 Largest 2 | 2 2 2 Hottest 121 | 40 40 121 Shots Fired 125 | 4 66 55 Gun 102 | 4 66 32 Cannon 21 | . . 21 Launcher . | . . . Special 2 | . . 2 Kinetic 115 | 4 66 45 Thermal 10 | . . 10 Explosive . | . . . Electromagnetic . | . . . Robot Hit Streak 16 | 2 5 16 Robot Miss Streak 3 | . 3 1 Penetration Max . | . . . Secondary Targets 3 | . 3 . Max Gunslinging Chain 1 | . 1 . Shots Hit Robots 81 | 2 34 45 Core Hits 39 | 2 12 25 Critical Kills . | . . . Critical Parts Destroyed . | . . . Critical Strikes . | . . . Melee Attacks . | . . . Impact . | . . . Slashing . | . . . Piercing . | . . . Sneak Attacks . | . . . Combat Hostiles . | . . . Follow-up Attacks . | . . . Damage Inflicted 1027 | 21 366 640 Guns 712 | 21 366 325 Cannons 291 | . . 291 Explosions . | . . . Melee . | . . . Ramming . | . . . Kinetic 849 | 21 366 462 Thermal 178 | . . 178 Explosive . | . . . Electromagnetic . | . . . Impact . | . . . Slashing . | . . . Piercing . | . . . Highest Corruption . | . . . Average Corruption . | . . . Corruption Purged . | . . . Corruption Blocked . | . . . Overload Shots . | . . . Overflow Damage . | . . . Projectiles . | . . . Explosions . | . . . Melee . | . . . Knockbacks 4 | . . 4 Impact . | . . . Kinetic 4 | . . 4 Secondary . | . . . Self-Inflicted Damage . | . . . Shots . | . . . Rammed . | . . . Targets Rammed . | . . . Kicked . | . . . Crushed . | . . . Highest Temperature 268 | . 18 268 Average Temperature 43 | . 7 53 Received Heat Transfer 681 | . 120 561 Siege Activations . | . . . Robots Corrupted . | . . . Combat Hostiles . | . . . Parts Fried . | . . . Impact Corruptions . | . . . Robots Melted . | . . . Combat Hostiles . | . . . Parts Melted 1 | . . 1 Heat Transferred 289 | . . 289 Parts Sabotaged . | . . . Parts Stolen . | . . . Parts Stripped . | . . . Power Chain Reactions . | . . . Alert | -11 -10 -9 ------- Run | Yrd Mat Mat Peak Influence 155 | 5 145 155 Initial 61 | . 3 61 Average 41 | 3 97 39 Maximum Alert Level . | . . . Low Security (%) 100 | 100 100 100 Level 1 . | . . . Level 2 . | . . . Level 3 . | . . . Level 4 . | . . . Level 5 . | . . . High Security . | . . . Max Security . | . . . Squads Dispatched 2 | . 1 1 Investigation . | . . . Extermination . | . . . Reinforcement 2 | . 1 1 Assault . | . . . Garrison . | . . . Intercept . | . . . Searches Triggered . | . . . Construction Impeded . | . . . Haulers Reinforced . | . . . Active Scanning Responses . | . . . Cargo Convoy Interrupts . | . . . Stealth | -11 -10 -9 --------- Run | Yrd Mat Mat Distress Signals 4 | . 2 2 Communications Jammed . | . . . Distress Signals . | . . . Times Spotted 25 | . 7 18 Peak Tracking Total 13 | . 5 13 Tactical Retreats . | . . . Traps | -11 -10 -9 ------- Run | Yrd Mat Mat Traps Triggered 1 | . . 1 Indirectly . | . . . Trap Hack Attempts . | . . . Triggered . | . . . Disarmed . | . . . Reprogrammed . | . . . Reused . | . . . Traps Extracted . | . . . Installed . | . . . Triggered . | . . . Machines | -11 -10 -9 ---------- Run | Yrd Mat Mat Machines Disabled . | . . . Max in Single Turn . | . . . Machines Repaired . | . . . Machines Dismantled . | . . . Machines Sabotaged . | . . . Overloaded Fab Kills . | . . . Hacking | -11 -10 -9 --------- Run | Yrd Mat Mat Machines Accessed . | . . . Terminals . | . . . Fabricators . | . . . Repair Stations . | . . . Recycling Units . | . . . Scanalyzers . | . . . Garrison Access . | . . . Total Hacks . | . . . Successful . | . . . Failed . | . . . Catastrophic . | . . . Database Lockouts . | . . . Manual . | . . . Terminals . | . . . Fabricators . | . . . Repair Stations . | . . . Recycling Units . | . . . Scanalyzers . | . . . Garrison Access . | . . . Terminal Hacks . | . . . Fabricator Hacks . | . . . Repair Station Hacks . | . . . Recycling Unit Hacks . | . . . Scanalyzer . | . . . Garrison Access Hacks . | . . . Unauthorized Hacks . | . . . Terminals . | . . . Fabricators . | . . . Repair Stations . | . . . Recycling Units . | . . . Scanalyzers . | . . . Garrison Access . | . . . Data Cores Recovered . | . . . Used . | . . . Hacking Detections . | . . . Full Trace Events . | . . . Feedback Events . | . . . Feedback Blocked . | . . . Robot Schematics Acquired . | . . . Robots Built . | . . . Authchips . | . . . Time . | . . . Total Robot Build Rating . | . . . Part Schematics Acquired . | . . . Parts Built . | . . . Authchips . | . . . Time . | . . . Total Part Build Rating . | . . . Parts Repaired . | . . . Time . | . . . Parts Recycled . | . . . Recycled Matter . | . . . Retrieved Matter . | . . . Retrieved Components . | . . . Parts Scanalyzed . | . . . Part Schematics Acquired . | . . . Parts Damaged . | . . . Bothacking | -11 -10 -9 ------------ Run | Yrd Mat Mat Used RIF Installer . | . . . Robots Hacked . | . . . Non-combat . | . . . Combat . | . . . Robot Hacks Applied . | . . . Relay Couplers Released . | . . . Fabnet Peak Effective % . | . . . Robots Rewired . | . . . Allies Hacked . | . . . Hacks Repelled . | . . . Allies | -11 -10 -9 -------- Run | Yrd Mat Mat Total Allies . | . . . Largest Group . | . . . Highest-Rated Group . | . . . Highest-Rated Ally . | . . . Total Orders . | . . . Ally Attacks . | . . . Total Damage . | . . . Kills . | . . . Allies Corrupted . | . . . Allies Melted . | . . . Intel | -11 -10 -9 ------- Run | Yrd Mat Mat Robot Analysis Total . | . . . Derelict Logs Recovered . | . . . Drone Launches . | . . . Drone Recoveries . | . . . Exploration | -11 -10 -9 ------------- Run | Yrd Mat Mat Turns Passed 1603 | 455 329 819 Spaces Moved 464 | 86 147 231 Core 155 | 6 . 149 Treads 259 | 80 147 32 Legs 19 | . . 19 Wheels . | . . . Hover 31 | . . 31 Flight . | . . . Fastest Speed 50 | 50 160 100 Average Speed 229 | 152 160 302 Slowest Speed 400 | 160 160 400 Overloaded Moves . | . . . Propulsion Burnouts . | . . . Robots Hopped . | . . . Cave-ins Triggered . | . . . Exploration Rate (%) 18 | 6 28 20 Regions Visited 2 Branch Regions . Pre-discovered Areas . | . . . Known Exits Taken . | . . . Unknown Exits Taken 2 | 1 1 . Scrap Searched . | . . . Spaces Dug . | . . . Terrain Destroyed . | . . . Melee . | . . . Projectile . | . . . AOE . | . . . Terrain Rammed . | . . . Walls Destroyed . | . . . Machines Disabled . | . . . Actions | -11 -10 -9 --------- Run | Yrd Mat Mat Total 884 | 406 182 296 Wait 302 | 301 . 1 Move 462 | 85 146 231 Hop . | . . . Pick Up 24 | 10 2 12 Fast Attach 1 | . . 1 Attach 16 | 7 1 8 Detach . | . . . Swap 5 | 1 . 4 Drop 3 | . . 3 Fire 71 | 2 33 36 Melee . | . . . Ram . | . . . Kick . | . . . Crush . | . . . Escape Stasis . | . . . Rewire . | . . . Trap . | . . . Miscellaneous . | . . . Route ------- -11/Scrapyard -10/Materials -9/Materials History --------- Turn | Location | Event 10 | -11/Scrapyard | Discovered new exit (range 15) 456 | -11/Scrapyard | Entered Materials 457 | -10/Materials | Build established: Mutant 758 | -10/Materials | Discovered new exit (range 16) 785 | -10/Materials | Entered another Materials area 785 | -9/Materials | Evolved 2 slots: Propulsion x1, Utility x1 896 | -9/Materials | Lost 4 parts (2n1u1w) 1585 | -9/Materials | Core integrity fell below 50% 1596 | -9/Materials | Core integrity fell below 20% 1604 | -9/Materials | Destroyed by G-34 Mercenary with Small Laser Last Messages --------------- K-01 Serf collects debris. Mining Laser destroyed. K-01 Serf collects debris. Ion Engine destroyed. K-01 Serf collects debris. Acquired Welding Torch. K-01 Serf collects debris. Critical hit (Burn: +37). R-06 Scavenger collects Lgt. Ion Engine. K-01 Serf collects debris. Beam Rifle destroyed. R-06 Scavenger collects Lgt. Assault Rifle. K-01 Serf collects debris. K-01 Serf destroyed. G-47 Trooper destroyed. K-01 Serf collects debris. M-13 Machinist repairs A-02 Transporter. Sml. Storage Unit destroyed. Spread Laser destroyed. K-01 Serf collects debris. Map ----- +----------------------------------------------------+ | ?????????????????????????????????????????????????? | | ?????????????????????????????????????????????????? | | ?????????????????????????????????????????????????? | | ?????????????????????????????????????????????????? | | ?????????????????????????????????????????????????? | | ?????????????????????????????????????????????????? | | ?????????????????????????????????????????????????? | | ?????????????????????????????????????????????????? | | ???????????????????????? ??????????????????????? | | ???????????????????????# ??????????????????????? | | ?????????????????????### ??????????????????????? | | ????????????????????? ??????????????????????? | | ?????????????????????? #?????????????????????? | | ?????????????????????? +?????????????????????? | | ?????????????????????? #?????????????????????? | | ??????????????????????? #?????????????????????? | | ??????????????????????? %Y#?????????????????????? | | ???????????????????????# #?????????????????????? | | ?????????????#########?# %%#?????????????????????? | | ?????????????# ! ?# % #?????????###?????????? | | ?????????????# # ####### ##????????? | | ?????????????# # Y ???????? | | ?????????????????? /u%** ???????? | | ???????????????????????# =gg% ???????? | | ???????????????????????# % ####### #?????????? | | ???????????????????????#k@ #?????????????????????? | | ???????????????????????# #?????????????????????? | | ?????###################m #?????????????????????? | | ??? #?????????????????????? | | ??? r #?????????????????????? | | ??? % #?????????????????????? | | ????############# ########?????????????????????? | | ????????????????# #####????????????????????????? | | ????????????????# !#????????????????????????? | | ????????????????# !#????????????????????????? | | ????????????????# !!#????????????????????????? | | ?????????? + !#????????????????????????? | | ???????"" # !!#????????????????????????? | | ###???? ?# #????????????????????????? | | #???? ???# #####????????????????????????? | | ############+?# #????????????????????????????? | | ## # ?# #????????????????????????????? | | ### # ?# #????????????????????????????? | | #?# """ """ # ?# #????????????????????????????? | | #?# """ """ # ## #????????????????????????????? | | #?# """ """ # ## #????????????????????????????? | | #?# # ## #????????????????????????????? | | #?# # ## #????????????????????????????? | | #?# # ## #????????????????????????????? | | #?####+###### ## #????????????????????????????? | +----------------------------------------------------+ Best States ------------- Heat Dissipation 28 Energy Generation 10 Energy Capacity 250 Matter Stores 334 Matter Capacity 350 Sight Range 16 Terrain Scan Range 16 Terrain Scan Density 10 Evasion (%) 40 Targeting Accuracy 16 Recoil Reduction 2 Item Schematics ----------------- None Robot Schematics ------------------ None Fabricated ------------ Nothing Alien Tech Used ----------------- None Achievements -------------- None Challenges ------------ None Game ------ Seed CannonSniperTube Manual? 0 Play Time 00:13:11 Cumulative 8.3 hours Start 2024.05.06 @ 13:45:40 End 2024.05.06 @ 13:57:33 Sessions 1 Manual Loads 0 Difficulty Rogue Special Mode None Game No. 18 Rogue 18 Adventurer 0 Explorer 0 Win Type - Total 0 Types 0/0/0/0/0/0/0/0/0 Lore% 14 Gallery% 12 Achievement% 11 Wizard Run 0 Options --------- Layout 1 ASCII 0 Keyboard 0 Movement Mouse Keybinds 0 Fullscreen 2 Font 24/Crisp Map View 50x35 Zoom Use 0% Tactical HUD 0 Map Filters NONE Filters NONE Steam 1 RUN: c96d9538-f89e-49ba-997f-3fb64cfd133a